bitfinex-derivatives/quotes_ETHF0:USTF0_20240927
["timestamp","ask_amount","ask_price","bid_price","bid_amount"]
[1727438658117,2.84276039,2654.9,2654.8,1.49]
[1727438658316,2.46620039,2654.9,2654.8,5.93398824]
[1727438658928,4.59655039,2655.0,2654.8,5.93398824]
[1727438659520,4.22000039,2655.0,2654.8,5.93398824]
[1727438659727,4.59655039,2655.0,2654.8,5.93398824]
[1727438660519,2.46620039,2654.9,2654.8,5.93398824]
[1727438661325,4.59655039,2655.0,2654.8,5.93398824]
[1727438663829,0.37656,2654.9,2654.8,5.93398824]
[1727438664126,4.59655039,2655.0,2654.8,5.55740824]
[1727438664319,4.59655039,2655.0,2654.8,5.93397824]
[1727438665437,4.59655039,2655.0,2654.9,0.37656]
[1727438665928,4.59655039,2655.0,2654.9,4.60176557]
[1727438666537,4.22000039,2655.0,2654.9,4.60176557]
[1727438666833,1.7538,2655.0,2654.9,4.60176557]
[1727438667429,4.22000039,2655.0,2654.9,4.60176557]
[1727438667731,2.46620039,2655.2,2654.9,12.35081557]
[1727438667936,3.2078,2655.4,2655.2,0.37652]
[1727438667937,2.46620039,2655.3,2655.2,0.37652]
[1727438668239,6.86580039,2655.4,2655.3,4.59013986]
[1727438668424,7.24229039,2655.4,2655.3,4.21362986]
[1727438668632,7.24229039,2655.4,2655.3,0.37651]
[1727438668824,6.863694,2655.4,2655.3,0.37651]
[1727438669541,6.86341855,2655.4,2655.3,0.37651]
[1727438670938,6.86341855,2655.4,2655.3,4.59879979]
[1727438672233,7.23990855,2655.4,2655.3,4.59879979]
[1727438672739,6.86341855,2655.4,2655.3,4.59879979]
[1727438673438,4.3996,2655.4,2655.3,4.59879979]
[1727438673644,4.77609,2655.4,2655.3,4.59879979]
[1727438673938,4.3996,2655.4,2655.3,4.59879979]
[1727438674148,6.86299326,2655.4,2655.3,4.59879979]
[1727438674531,4.3996,2655.4,2655.3,4.59879979]
[1727438675338,3.89719191,2655.8,2655.5,0.9412]
[1727438675339,3.2078,2655.7,2655.5,0.9412]
[1727438675536,2.95607191,2656.0,2655.8,0.37644]
[1727438675537,1.1858,2655.9,2655.8,0.37644]
[1727438675727,1.1858,2655.9,2655.8,1.86644]
[1727438675930,1.1858,2655.9,2655.8,5.78967606]
[1727438676232,0.6089,2656.0,2655.9,0.37642]
[1727438676539,0.6089,2656.0,2655.9,4.32493871]
[1727438677137,3.2078,2656.1,2656.0,0.37641]
[1727438677340,3.2078,2656.1,2656.0,1.49]
[1727438677636,3.2078,2656.1,2656.0,6.11821149]
[1727438678231,3.2078,2656.1,2656.0,6.30479664]
[1727438678940,3.2078,2656.1,2656.0,5.92838664]
[1727438679138,3.58419,2656.1,2656.0,5.92838664]
[1727438679638,3.58419,2656.1,2656.0,4.25180149]
[1727438681137,3.58419,2656.1,2655.7,1.49]
[1727438681138,0.37644,2655.8,2655.7,1.49]
[1727438681347,0.37645,2655.7,2655.6,2.0625]
[1727438681536,0.37648,2655.5,2655.4,2.631]
[1727438681734,0.37648,2655.5,2655.4,1.49]
[1727438684347,0.37649,2655.4,2655.3,0.6093]
[1727438684734,0.37649,2655.4,2655.3,4.63748738]
[1727438685338,0.37649,2655.4,2655.3,4.02818738]
[1727438693947,0.94637,2655.6,2655.4,0.37649]
[1727438694149,3.40976326,2655.6,2655.4,4.19669]
[1727438694752,0.94637,2655.6,2655.4,4.19669]
[1727438694941,0.5699,2655.6,2655.5,0.37648]
[1727438700651,0.94636,2655.6,2655.5,0.37648]
[1727438701452,3.40975326,2655.6,2655.5,0.37648]
[1727438701644,0.94636,2655.6,2655.5,0.37648]
[1727438701842,3.63199326,2655.7,2655.6,0.37646]
[1727438702049,1.1686,2655.7,2655.6,0.37646]
[1727438702248,1.1686,2655.7,2655.6,4.51995555]
[1727438702443,1.54505,2655.7,2655.6,4.51995555]
[1727438704153,1.54505,2655.7,2655.6,4.14349555]
[1727438704543,0.37648,2655.5,2655.4,0.5902]
[1727438704747,8.33874326,2655.7,2655.3,0.3765]
[1727438704748,0.3765,2655.4,2655.3,0.3765]
[1727438704949,3.43064021,2655.4,2655.3,0.3765]
[1727438705543,0.37651,2655.3,2655.2,5.29685101]
[1727438705739,4.00515021,2655.3,2655.2,4.92033101]
[1727438706349,4.00515021,2655.3,2655.2,6.41033101]
[1727438708157,3.62864021,2655.3,2655.2,6.78685101]
[1727438708349,3.05204021,2655.3,2655.2,6.78685101]
[1727438708747,2.46314021,2655.3,2655.2,6.78685101]
[1727438709059,0.96749,2655.4,2655.3,0.37651]
[1727438709452,0.96749,2655.4,2655.2,6.78684101]
[1727438709651,2.84103422,2655.3,2655.2,6.78684101]
[1727438709853,2.46452422,2655.3,2655.2,6.78684101]
[1727438710456,2.46452422,2655.4,2655.3,0.37651]
[1727438710658,2.46452422,2655.4,2655.3,2.41951]
[1727438710856,2.46452422,2655.4,2655.3,6.42494621]
[1727438711153,0.574,2655.5,2655.4,0.37649]
[1727438711154,2.46452422,2655.5,2655.4,0.37649]
[1727438711359,2.46452422,2655.5,2655.4,0.97799]
[1727438711657,2.46452422,2655.5,2655.4,5.19321571]
[1727438711953,2.46452422,2655.5,2655.4,8.95881571]
[1727438712760,2.84097422,2655.7,2655.6,0.37646]
[1727438712947,2.84097422,2655.7,2655.4,4.81672571]
[1727438713154,2.84097422,2655.7,2655.6,4.09913807]
[1727438713357,2.84097422,2655.7,2655.5,4.09913807]
[1727438713653,2.46452422,2655.6,2655.5,0.37648]
[1727438714054,2.46452422,2655.6,2655.5,4.71835713]
[1727438714658,0.37645,2655.7,2655.6,0.37646]
[1727438714659,2.84097422,2655.7,2655.6,0.37646]
[1727438715056,2.84097422,2655.7,2655.6,4.52847463]
[1727438715257,2.46452422,2655.7,2655.6,4.52847463]
[1727438716161,0.37645,2655.8,2655.7,0.37645]
[1727438716764,0.37645,2655.7,2655.6,4.52846463]
[1727438716954,2.84220876,2655.7,2655.6,4.52846463]
[1727438717154,2.84220876,2655.7,2655.6,0.37645]
[1727438717155,2.84222383,2655.7,2655.6,0.37645]
[1727438717457,0.37645,2655.7,2655.6,4.51744779]
[1727438717760,3.58425,2655.8,2655.7,0.37645]
[1727438717958,0.37645,2655.7,2655.6,4.51744779]
[1727438718166,2.84228182,2655.7,2655.6,4.51744779]
[1727438719368,2.84228182,2655.7,2655.6,4.51745779]
[1727438719661,0.37645,2655.7,2655.6,4.51745779]
[1727438720860,6.54031191,2655.8,2655.7,0.37645]
[1727438721061,3.58424,2655.8,2655.7,0.37645]
[1727438721361,3.58424,2655.8,2655.7,4.47597705]
[1727438721362,3.2078,2655.8,2655.7,4.47597705]
[1727438721956,3.58424,2655.8,2655.7,4.47597705]
[1727438723062,3.2078,2655.8,2655.7,4.47597705]
[1727438723966,0.552,2655.9,2655.8,0.37644]
[1727438724159,0.552,2655.9,2655.8,1.86644]
[1727438724462,0.552,2655.9,2655.8,5.79785583]
[1727438724655,0.92842,2655.9,2655.8,5.79785583]
[1727438725657,0.92842,2655.9,2655.8,5.42141583]
[1727438726967,0.92842,2655.9,2655.8,5.79785583]
[1727438727770,3.39480083,2655.9,2655.8,5.79785583]
[1727438728266,3.39480083,2655.9,2655.8,6.34205583]
[1727438730375,3.39480083,2655.9,2655.8,5.96561583]
[1727438730559,3.39480083,2655.9,2655.2,4.19024148]
[1727438730560,0.37647,2655.6,2655.2,4.19024148]
[1727438730762,0.5665,2655.5,2655.3,1.4655]
[1727438730961,0.5885,2655.4,2655.3,1.4655]
[1727438731165,1.149,2655.5,2655.4,4.29712302]
[1727438731559,1.149,2655.5,2655.4,0.37649]
[1727438731773,1.149,2655.5,2655.4,4.45567287]
[1727438732270,2.46605737,2655.7,2655.6,0.37646]
[1727438732473,2.84250737,2655.7,2655.6,1.86646]
[1727438732773,4.55749737,2655.8,2655.7,0.37645]
[1727438733075,4.18105737,2655.8,2655.7,0.37645]
[1727438733680,4.18105737,2655.8,2655.7,4.59732038]
[1727438733873,1.715,2655.8,2655.7,4.59732038]
[1727438734077,4.18105737,2655.8,2655.7,4.59732038]
[1727438734467,4.55749737,2655.8,2655.7,4.22087038]
[1727438735273,2.09144,2655.8,2655.7,4.22087038]
[1727438735470,4.55778707,2655.8,2655.7,4.22087038]
[1727438735682,2.09144,2655.8,2655.7,4.22087038]
[1727438736369,4.55777997,2655.8,2655.7,4.22087038]
[1727438738274,0.37646,2655.7,2655.5,3.58427]
[1727438738470,2.84306313,2655.7,2655.5,3.58427]
[1727438738773,2.84306313,2655.7,2655.6,4.20781616]
[1727438739971,2.84306313,2655.7,2655.6,4.58427616]
[1727438740374,2.84306313,2655.7,2655.6,4.20781616]
[1727438741174,2.46660313,2655.7,2655.6,4.58427616]
[1727438741373,2.46660313,2655.7,2655.6,6.07427616]
[1727438741574,2.84305313,2655.7,2655.6,6.07427616]
[1727438742178,2.46660313,2655.7,2655.6,6.07427616]
[1727438742884,0.37645,2655.7,2655.6,5.69781616]
[1727438743180,0.37645,2655.7,2655.5,3.58427]
[1727438743181,3.58426,2655.7,2655.5,1.86648]
[1727438743374,3.58426,2655.7,2655.6,0.37646]
[1727438743571,3.58426,2655.7,2655.5,1.86647]
[1727438743882,3.58426,2655.7,2655.5,2.05317277]
[1727438743883,6.54033191,2655.7,2655.5,2.05317277]
[1727438744079,0.37646,2655.6,2655.5,1.49]
[1727438744376,3.7656,2655.6,2654.7,4.14926]
[1727438744584,4.44100552,2655.1,2654.9,1.49]
[1727438744777,5.6753182,2655.1,2655.0,4.43938042]
[1727438744980,5.67526227,2655.1,2655.0,0.37655]
[1727438745174,3.2078,2655.1,2655.0,0.37655]
[1727438745370,3.2078,2655.1,2655.0,4.43938042]
[1727438745574,5.67503682,2655.1,2655.0,4.43938042]
[1727438746281,5.67503682,2655.1,2655.0,4.99898042]
[1727438746784,3.2078,2655.1,2655.0,4.99898042]
[1727438747681,5.67480363,2655.1,2655.0,4.99898042]
[1727438747886,5.67480363,2655.1,2655.0,4.43938042]
[1727438748386,3.2078,2655.1,2655.0,4.06283042]
[1727438748892,3.2078,2655.1,2654.7,1.46559]
[1727438748893,0.37656,2655.0,2654.7,1.46559]
[1727438749078,1.1934,2654.9,2654.8,1.86657]
[1727438749281,1.1934,2654.9,2654.8,6.22635448]
[1727438749473,1.1934,2654.9,2654.8,5.84978448]
[1727438749683,1.1934,2654.9,2654.8,6.22636448]
[1727438749882,3.65965148,2654.9,2654.8,6.22636448]
[1727438750278,3.65965148,2654.9,2654.8,4.35978448]
[1727438750585,0.37658,2654.8,2654.4,0.37663]
[1727438750791,6.4498,2654.9,2654.3,2.579]
[1727438750792,5.67361418,2654.7,2654.5,1.86662]
[1727438750978,1.97262903,2654.6,2654.5,5.65919398]
[1727438751185,5.67361418,2654.7,2654.5,1.49]
[1727438751487,1.97191941,2654.6,2654.5,1.86662]
[1727438751992,1.97191941,2654.6,2654.5,1.49]
[1727438752887,1.97191941,2654.6,2654.3,1.49]
[1727438753083,1.47848654,2654.4,2654.3,1.86665]
[1727438753383,1.1274,2654.5,2654.3,5.55666158]
[1727438753384,2.60588654,2654.5,2654.3,5.55666158]
[1727438753886,2.60588654,2654.5,2654.3,5.93331158]
[1727438754084,1.47848654,2654.4,2654.3,5.55666158]
[1727438754482,2.60588654,2654.5,2654.3,5.55666158]
[1727438754883,1.47848654,2654.4,2654.3,5.55666158]
[1727438755085,4.68628654,2654.4,2654.3,5.55666158]
[1727438755482,4.68628654,2654.4,2654.3,4.06666158]
[1727438755687,6.975,2654.4,2654.2,1.49]
[1727438755888,1.47717918,2654.3,2654.2,1.49]
[1727438756389,5.06161918,2654.4,2654.2,1.49]
[1727438756586,1.47717918,2654.3,2654.2,1.49]
[1727438757094,5.24437918,2654.3,2654.2,1.49]
[1727438757480,3.7672,2654.3,2654.2,1.49]
[1727438758093,4.68497918,2654.4,2654.2,1.49]
[1727438758393,0.5786,2654.3,2654.2,1.49]
[1727438758593,0.5786,2654.3,2654.2,1.86666]
[1727438758895,0.5786,2654.3,2654.2,5.94275969]
[1727438760111,0.5644,2654.5,2654.4,0.37663]
[1727438760406,2.06947918,2654.6,2654.5,0.37662]
[1727438760586,0.5923,2654.6,2654.5,1.86662]
[1727438760988,2.02117918,2654.8,2654.7,0.37659]
[1727438761186,2.02117918,2654.8,2654.7,1.86659]
[1727438761187,1.1363,2654.8,2654.7,1.86659]
[1727438761394,1.1363,2654.8,2654.7,5.99358253]
[1727438761594,1.1363,2654.8,2654.7,5.61699253]
[1727438761893,1.1363,2654.8,2654.7,5.99358253]
[1727438762286,1.1363,2654.8,2654.7,5.61699253]
[1727438763294,1.1363,2654.8,2654.7,5.99358253]
[1727438763483,0.5931,2654.9,2654.8,0.37658]
[1727438763688,4.68497918,2655.0,2654.9,0.37656]
[1727438763992,2.07927918,2655.1,2654.9,1.49]
[1727438764196,2.07927918,2655.1,2654.9,1.86656]
[1727438764893,2.07927918,2655.1,2655.0,0.37655]
[1727438765285,2.07927918,2655.1,2654.9,1.86656]
[1727438765596,2.07927918,2655.1,2655.0,4.00167921]
[1727438765793,2.07927918,2655.1,2655.0,4.37822921]
[1727438766189,0.6021,2655.1,2655.0,4.37822921]
[1727438766494,2.07927918,2655.1,2655.0,4.37822921]
[1727438766702,0.6021,2655.1,2655.0,4.37822921]
[1727438766887,5.23537918,2655.2,2655.1,0.37653]
[1727438767192,5.29252,2655.2,2655.1,1.49]
[1727438767398,4.916,2655.2,2655.1,1.49]
[1727438767599,4.916,2655.2,2655.1,1.86653]
[1727438768699,4.916,2655.2,2655.1,1.49]
[1727438768700,5.29252,2655.2,2655.1,1.49]
[1727438768900,0.37653,2655.1,2655.0,1.49]
[1727438769206,0.37654,2655.1,2654.9,1.49]
[1727438769398,0.37655,2655.0,2654.9,1.49]
[1727438769706,0.37655,2655.0,2654.9,5.762507]
[1727438770010,3.34372918,2655.0,2654.9,4.272507]
[1727438770195,4.77984941,2655.0,2654.9,4.272507]
[1727438771296,3.83846941,2655.0,2654.9,4.272507]
[1727438771501,2.34846941,2655.0,2654.9,4.272507]
[1727438771812,1.97191941,2655.1,2654.9,4.649067]
[1727438771995,2.34845941,2655.1,2654.9,4.649067]
[1727438772190,1.97191941,2655.1,2655.0,1.86655]
[1727438772394,1.97191941,2655.1,2655.0,0.37655]
[1727438772600,7.26443941,2655.2,2655.0,0.96905]
[1727438772803,7.26443941,2655.2,2655.1,0.37653]
[1727438773494,4.916,2655.2,2655.1,0.37653]
[1727438773692,5.29252,2655.2,2655.0,0.96904]
[1727438773895,1.4749876,2655.1,2655.0,0.96904]
[1727438774206,1.4749876,2655.1,2655.0,5.31394367]
[1727438774599,1.5832876,2655.1,2655.0,5.31394367]
[1727438775102,0.1083,2655.1,2655.0,5.31394367]
[1727438775408,1.5832876,2655.1,2655.0,5.31394367]
[1727438775998,1.5832876,2655.1,2655.0,4.93740367]
[1727438776297,1.58370645,2655.1,2655.0,4.93740367]
[1727438776607,0.48483,2655.1,2655.0,4.34490367]
[1727438777207,0.48483,2655.1,2654.9,4.32343247]
[1727438777499,0.48483,2655.1,2654.6,0.5484]
[1727438777500,0.37658,2654.8,2654.6,1.053]
[1727438777706,1.7225,2654.7,2654.6,1.4296]
[1727438777903,1.7225,2654.7,2654.6,0.3766]
[1727438778101,1.7225,2654.7,2654.6,4.02104548]
[1727438778300,1.7225,2654.7,2654.6,0.25384548]
[1727438778502,1.7225,2654.7,2654.6,0.63045548]
[1727438778813,1.7225,2654.7,2654.6,0.25384548]
[1727438779105,4.68362694,2654.9,2654.6,0.25384548]
[1727438779106,4.68362694,2654.9,2654.7,0.37659]
[1727438779320,4.68362694,2654.9,2654.8,0.5564]
[1727438779604,4.68362694,2654.9,2654.8,4.70942143]
[1727438781407,4.67162693,2654.9,2654.8,4.70942143]
[1727438781608,3.19579999,2654.9,2654.8,4.70942143]
[1727438782404,5.04818693,2654.9,2654.8,4.70942143]
[1727438782713,5.04818693,2654.9,2654.8,4.15302143]
[1727438782909,5.5442794,2654.9,2654.8,4.15302143]
[1727438783101,6.4856894,2654.9,2654.8,4.15302143]
[1727438783305,0.94145,2654.8,2654.2,1.42965]
[1727438783508,3.2078,2654.4,2654.2,1.42965]
[1727438783700,3.2078,2654.4,2654.1,3.8109]
[1727438783701,0.5835,2654.3,2654.1,3.8109]
[1727438783903,0.5835,2654.3,2654.1,1.6339]
[1727438784104,1.1563,2654.3,2654.2,4.00984046]
[1727438784503,1.53295,2654.3,2653.9,1.42969]
[1727438784706,3.2078,2654.1,2653.9,1.42969]
[1727438784904,3.2078,2654.1,2653.9,5.65062063]
[1727438785104,1.47750612,2654.2,2653.9,5.65062063]
[1727438785311,1.47750612,2654.2,2653.9,4.59763063]
[1727438785312,1.47750612,2654.1,2653.9,4.59763063]
[1727438785818,1.47750612,2654.1,2653.9,4.22093063]
[1727438786211,1.47750612,2654.1,2653.9,4.59763063]
[1727438786615,0.5579,2654.0,2653.9,4.22093063]
[1727438786818,2.03540612,2654.0,2653.9,4.22093063]
[1727438787315,0.5579,2654.0,2653.9,4.22093063]
[1727438787510,2.0355135,2654.0,2653.9,4.22093063]
[1727438788311,0.37674,2653.7,2653.3,1.40278]
[1727438788507,1.1798,2653.6,2653.3,1.40278]
[1727438788711,2.65740689,2653.6,2653.5,4.19683165]
[1727438788910,3.03415689,2653.6,2653.4,4.19683165]
[1727438789206,3.03415689,2653.6,2653.2,8.25761574]
[1727438789207,1.85437689,2653.5,2653.2,3.8322]
[1727438789407,1.47760689,2653.4,2653.2,5.235]
[1727438789611,1.47760689,2653.4,2653.3,4.35050184]
[1727438790121,0.5608,2653.5,2653.3,4.35050184]
[1727438790322,0.5608,2653.5,2653.3,4.72729184]
[1727438790525,0.5608,2653.5,2653.3,4.35050184]
[1727438790716,0.5608,2653.5,2653.3,4.72728184]
[1727438790917,0.5608,2653.5,2653.3,4.35050184]
[1727438791624,1.1798,2653.6,2653.4,3.23]
[1727438791814,1.1798,2653.6,2653.4,4.15647]
[1727438792017,1.1798,2653.6,2653.5,3.93285836]
[1727438793714,0.5743,2653.9,2653.5,3.93285836]
[1727438794016,1.1403,2653.9,2653.6,3.23]
[1727438794217,1.1403,2653.9,2653.6,3.60674]
[1727438794423,1.1403,2653.9,2653.7,7.43038717]
[1727438795330,1.1403,2653.9,2653.7,7.80711717]
[1727438795623,1.1403,2653.9,2653.7,7.43038717]
[1727438796534,0.566,2653.9,2653.7,7.43038717]
[1727438798424,0.94271,2653.9,2653.7,7.43038717]
[1727438799916,0.566,2653.9,2653.7,7.43038717]
[1727438800117,0.566,2653.9,2653.5,3.23]
[1727438800118,0.37674,2653.7,2653.5,3.23]
[1727438800318,3.58454,2653.7,2653.5,3.23]
[1727438800624,1.1451,2653.6,2653.4,1.95247]
[1727438801025,1.1451,2653.6,2653.5,4.71170999]
[1727438801526,1.2535,2653.6,2653.5,4.33494999]
[1727438801730,1.2535,2653.6,2653.5,4.71170999]
[1727438803930,1.2535,2653.6,2653.5,4.33494999]
[1727438805026,1.2535,2653.6,2653.5,4.71170999]
[1727438806731,5.0223,2653.6,2653.5,4.33494999]
[1727438806920,0.37682,2653.1,2652.7,0.5143]
[1727438807121,0.94194,2653.5,2652.7,0.5143]
[1727438807122,3.2078,2652.8,2652.7,0.5143]
[1727438807325,3.2078,2652.8,2652.7,4.65799539]
[1727438807529,3.2078,2652.8,2652.7,4.14369539]
[1727438808531,3.58466,2652.8,2652.7,4.14369539]
[1727438808732,3.2078,2652.8,2652.7,4.14369539]
[1727438811137,3.58466,2652.8,2652.7,4.14369539]
[1727438811334,3.2078,2652.8,2652.7,4.14369539]
[1727438814843,3.58466,2652.8,2652.7,4.14369539]
[1727438815031,3.2078,2652.8,2652.7,4.14369539]
[1727438815232,3.58466,2652.8,2652.7,4.14369539]
[1727438815741,3.58466,2652.8,2652.3,1.40293]
[1727438815938,3.2078,2652.5,2652.3,1.40293]
[1727438816142,3.2078,2652.5,2652.4,4.27919853]
[1727438820343,3.5847,2652.5,2652.4,4.27919853]
[1727438820545,0.37693,2652.3,2652.0,1.003]
[1727438820765,3.2078,2652.1,2652.0,0.37697]
[1727438820946,3.2078,2652.1,2652.0,4.14737]
[1727438821138,3.2078,2652.1,2652.0,8.23582146]
[1727438822045,3.2078,2652.1,2652.0,4.46542146]
[1727438822442,3.2078,2652.1,2652.0,4.08845146]
[1727438824152,3.3162,2652.1,2652.0,4.46542146]
[1727438827057,3.3162,2652.1,2652.0,4.46542146]
[1727438829655,0.1084,2652.1,2652.0,18.93292565]
[1727438829856,0.1084,2652.1,2652.0,11.77048565]
[1727438831947,0.1084,2652.1,2652.0,17.77048565]
[1727438832155,0.1084,2652.1,2652.0,18.95292565]
[1727438832553,0.1084,2652.1,2652.0,18.71292565]
[1727438833063,0.1084,2652.1,2652.0,17.77048565]
[1727438833457,0.1084,2652.1,2652.0,17.96048565]
[1727438833763,4.3699,2652.7,2652.3,0.37692]
[1727438834154,4.3699,2652.7,2652.4,4.40815915]
[1727438834663,4.3699,2652.7,2652.4,0.37691]
[1727438834859,4.3699,2652.7,2652.5,4.03124915]
[1727438836356,4.74678,2652.7,2652.5,4.03124915]
[1727438836559,4.3699,2652.7,2652.5,4.03124915]
[1727438836861,4.74678,2652.7,2652.5,4.03124915]
[1727438837058,4.3699,2652.7,2652.5,4.03124915]
[1727438838159,4.3699,2652.7,2652.5,4.40813915]
[1727438838466,4.3699,2652.7,2652.5,0.37689]
[1727438838758,4.3699,2652.7,2652.6,4.17948907]
[1727438841867,4.3699,2652.7,2652.6,4.55637907]
[1727438842756,3.7993,2652.7,2652.6,4.17948907]
[1727438842966,4.17618,2652.7,2652.6,4.17948907]
[1727438843266,4.17618,2652.7,2652.5,4.06119069]
[1727438843468,4.17618,2652.7,2652.3,5.11203467]
[1727438843469,7.40618,2652.7,2652.6,4.06119069]
[1727438843767,0.37689,2652.6,2652.5,4.06119069]
[1727438844063,0.37689,2652.6,2652.3,0.37693]
[1727438844260,0.5729,2652.5,2652.2,0.37694]
[1727438844461,0.5729,2652.5,2652.4,4.16676212]
[1727438844656,0.5729,2652.5,2652.3,4.16676212]
[1727438844860,0.5729,2652.5,2652.2,1.37994]
[1727438845063,3.2078,2652.4,2652.2,1.37994]
[1727438845262,3.8081,2652.4,2652.3,4.13569129]
[1727438850572,3.8081,2652.4,2652.3,4.51262129]
[1727438850573,3.2078,2652.4,2652.3,4.51262129]
[1727438850870,3.2078,2652.4,2652.3,4.69739129]
[1727438851773,3.2078,2652.4,2652.3,5.07432129]
[1727438852770,5.17050668,2652.4,2652.3,4.13569129]
[1727438852975,3.2078,2652.4,2652.3,4.13569129]
[1727438853173,3.2078,2652.4,2652.3,0.37693]
[1727438853373,5.18448709,2652.4,2652.3,0.37693]
[1727438853562,5.18466321,2652.4,2652.3,4.34427074]
[1727438853768,5.18461183,2652.4,2652.3,3.96734074]
[1727438853969,3.2078,2652.4,2652.3,3.96734074]
[1727438854163,3.2078,2652.4,2652.2,4.68791519]
[1727438854383,2.52406949,2652.3,2652.2,0.37694]
[1727438854672,2.52406949,2652.3,2652.2,4.68791519]
[1727438855275,2.52406949,2652.3,2652.2,4.31097519]
[1727438858082,2.52406949,2652.3,2652.2,4.68792519]
[1727438858272,1.1045,2652.3,2652.2,4.68792519]
[1727438858472,3.08168859,2652.3,2652.2,4.68792519]
[1727438859781,2.53448859,2652.3,2652.2,4.68792519]
[1727438860080,3.32734277,2652.8,2652.3,0.37693]
[1727438860081,1.97718859,2652.4,2652.3,0.37693]
[1727438860281,1.97718859,2652.4,2652.3,1.16293]
[1727438860487,1.97718859,2652.4,2652.3,8.83625855]
[1727438860873,2.45872731,2652.7,2652.6,0.37689]
[1727438861079,3.00092731,2652.9,2652.8,0.37686]
[1727438861380,0.5422,2652.9,2652.8,4.30049244]
[1727438861888,0.5422,2652.9,2652.8,3.92363244]
[1727438862272,0.5422,2652.9,2652.8,0.37686]
[1727438862474,0.5422,2652.9,2652.7,7.16921169]
[1727438862475,3.54822731,2653.1,2652.9,0.37684]
[1727438862675,4.09042731,2653.1,2652.9,0.37684]
[1727438862876,4.09042731,2653.1,2653.0,3.93921169]
[1727438863380,1.6317,2653.1,2653.0,3.93921169]
[1727438863980,4.09042731,2653.1,2653.0,3.93921169]
[1727438864180,4.09042731,2653.1,2652.9,4.07068115]
[1727438864388,1.6317,2653.1,2652.8,0.37685]
[1727438864783,1.6317,2653.1,2652.9,4.07068115]
[1727438865180,1.6317,2653.1,2652.8,4.58859733]
[1727438865487,1.6317,2653.1,2653.0,0.37683]
[1727438865688,1.6317,2653.1,2652.9,4.58858733]
[1727438865989,1.6317,2653.1,2653.0,4.21174733]
[1727438866189,1.6317,2653.1,2652.8,0.37685]
[1727438866381,1.6317,2653.1,2652.9,4.13605627]
[1727438866776,1.6317,2653.1,2652.8,0.37685]
[1727438866977,1.6317,2653.1,2652.9,4.28857709]
[1727438867180,2.00852,2653.1,2652.9,4.28857709]
[1727438867580,2.00852,2653.1,2652.8,4.28857709]
[1727438867781,2.00852,2653.1,2652.6,0.32227804]
[1727438867977,4.46724731,2653.1,2653.0,4.28857709]
[1727438868177,4.46724731,2653.1,2652.9,4.19313176]
[1727438868382,4.46724731,2653.1,2653.0,4.19313176]
[1727438868784,4.46724731,2653.1,2652.9,4.19313176]
[1727438868981,4.46724731,2653.1,2653.0,4.08937094]
[1727438869397,4.46724731,2653.1,2652.9,4.08937094]
[1727438869398,4.09042731,2653.1,2652.9,4.08937094]
[1727438869689,0.5422,2653.1,2653.0,0.37683]
[1727438869992,6.19882731,2653.5,2653.4,0.37678]
[1727438870378,3.7401,2653.5,2653.3,0.56316808]
[1727438870582,3.7401,2653.5,2653.4,4.30083164]
[1727438870786,3.2078,2653.5,2653.4,4.30083164]
[1727438872788,3.2078,2653.5,2653.4,3.92405164]
[1727438873884,3.2078,2653.5,2653.4,7.69285164]
[1727438874092,3.2078,2653.5,2653.4,4.30083164]
[1727438874287,3.2078,2653.5,2653.4,8.06963164]
[1727438875495,0.557,2653.7,2653.4,8.06963164]
[1727438875793,0.557,2653.7,2653.4,4.30083164]
[1727438877889,0.557,2653.7,2653.5,0.37675]
[1727438878195,0.557,2653.7,2653.6,4.11693959]
[1727438880393,5.66652731,2654.2,2653.6,4.34693959]
[1727438880703,0.5694,2654.0,2653.9,0.3767]
[1727438881201,0.5694,2654.0,2653.9,4.40397577]
[1727438883000,3.2078,2654.2,2654.1,0.37668]
[1727438883394,3.2078,2654.2,2654.1,4.68293611]
[1727438884190,3.2078,2654.2,2654.1,4.30625611]
[1727438884595,3.2078,2654.2,2654.1,0.37668]
[1727438884796,3.2078,2654.2,2654.1,4.55239712]
[1727438885802,3.2078,2654.2,2654.1,4.17571712]
[1727438886196,3.2078,2654.2,2654.0,0.37668]
[1727438886197,3.2078,2654.2,2654.0,4.62178006]
[1727438886506,3.2078,2654.2,2654.0,0.37668]
[1727438886801,3.2078,2654.2,2654.1,4.24510006]
[1727438889106,3.2078,2654.2,2654.0,3.94849557]
[1727438889304,3.2078,2654.2,2653.9,1.37869]
[1727438889502,3.23,2654.1,2654.0,4.2946109]
[1727438889706,3.58446,2654.2,2654.0,4.2946109]
[1727438889998,3.2078,2654.2,2653.9,4.2946109]
[1727438890195,3.2078,2654.2,2653.8,0.37671]
[1727438890391,3.2078,2654.2,2654.0,3.99687452]
[1727438890600,3.58446,2654.2,2654.0,3.99687452]
[1727438890906,3.2078,2654.2,2653.8,0.37671]
[1727438891099,3.2078,2653.9,2653.8,0.37671]
[1727438891294,3.58446,2654.2,2653.8,0.37671]
[1727438891500,3.2078,2654.2,2653.8,4.55866878]
[1727438893404,3.2078,2654.2,2653.9,0.3767]
[1727438893705,3.2078,2654.2,2654.0,4.09610101]
[1727438894095,3.58447,2654.2,2653.9,4.36471232]
[1727438894302,3.58447,2654.2,2653.8,0.37671]
[1727438894503,3.2078,2654.2,2653.8,0.37671]
[1727438894707,3.2078,2654.2,2653.7,1.7571]
[1727438894708,3.2078,2654.2,2653.9,4.74141232]
[1727438895110,3.2078,2654.2,2653.9,0.3767]
[1727438895309,3.2078,2654.2,2654.0,4.36641864]
[1727438895608,3.2078,2654.2,2654.1,0.37668]
[1727438895802,2.3467,2654.4,2654.3,0.37665]
[1727438896407,0.7949,2654.4,2654.3,0.37665]
[1727438896601,1.96375592,2654.9,2654.5,0.37661]
[1727438896602,2.2875,2654.8,2654.5,0.37661]
[1727438896803,2.2875,2654.8,2654.5,3.23]
[1727438897013,2.2875,2654.8,2654.6,4.23158419]
[1727438897607,3.2078,2654.7,2654.6,4.23158419]
[1727438897914,2.66408,2654.8,2654.6,4.23158419]
[1727438898116,5.87188,2654.8,2654.6,4.23158419]
[1727438900425,5.4953,2654.8,2654.6,4.23158419]